[Event "Early-Titled-Tuesday-Blitz-May-07-2024"]
[Site "Chess.com"]
[Date "2024.05.07"]
[Round "3"]
[White "moro182"]
[Black "Phuzer"]
[Result "1-0"]
[WhiteElo "2862"]
[BlackElo "2595"]
[TimeControl "180+1"]
[EndTime "8:27:37 PDT"]
[Termination "moro182 won by resignation"]

1. d4 {[%clk 0:03:00.9]} 1... d5 {[%clk 0:02:59.1]} 2. Bf4 {[%clk 0:02:57.6]}
2... Nf6 {[%clk 0:02:56.9]} 3. e3 {[%clk 0:02:56.6]} 3... c5 {[%clk 0:02:57.1]}
4. dxc5 {[%clk 0:02:57]} 4... Nc6 {[%clk 0:02:56.6]} 5. Bb5 {[%clk 0:02:56.8]}
5... a5 {[%clk 0:02:44.1]} 6. c3 {[%clk 0:02:56.6]} 6... e6 {[%clk 0:02:44.3]}
7. b4 {[%clk 0:02:56.6]} 7... Ne4 {[%clk 0:02:44.7]} 8. f3 {[%clk 0:02:52.7]}
8... Nf6 {[%clk 0:02:44.2]} 9. Ne2 {[%clk 0:02:48.5]} 9... Bd7 {[%clk
0:02:44.5]} 10. Qb3 {[%clk 0:02:48.4]} 10... b6 {[%clk 0:02:43.6]} 11. Bxc6
{[%clk 0:02:47.9]} 11... Bxc6 {[%clk 0:02:43.6]} 12. b5 {[%clk 0:02:48.6]} 12...
Bd7 {[%clk 0:02:42.4]} 13. c6 {[%clk 0:02:48.3]} 13... Bc8 {[%clk 0:02:42.9]}
14. Nd2 {[%clk 0:02:40.9]} 14... Bd6 {[%clk 0:02:43]} 15. Bxd6 {[%clk
0:02:36.7]} 15... Qxd6 {[%clk 0:02:43.9]} 16. Rd1 {[%clk 0:02:33.9]} 16... O-O
{[%clk 0:02:43.3]} 17. O-O {[%clk 0:02:28.9]} 17... a4 {[%clk 0:02:43.9]} 18.
Qb4 {[%clk 0:02:28.6]} 18... Qxb4 {[%clk 0:02:37.4]} 19. cxb4 {[%clk 0:02:29.5]}
19... e5 {[%clk 0:02:37.6]} 20. a3 {[%clk 0:02:20.9]} 20... Bf5 {[%clk
0:02:37.8]} 21. Nb1 {[%clk 0:02:15.6]} 21... Bc2 {[%clk 0:02:31]} 22. Nbc3
{[%clk 0:02:15.1]} 22... Bb3 {[%clk 0:02:31.9]} 23. f4 {[%clk 0:02:12.4]} 23...
exf4 {[%clk 0:02:28.6]} 24. Nxf4 {[%clk 0:02:12.6]} 24... Rfd8 {[%clk
0:02:28.1]} 25. Rd4 {[%clk 0:02:10.3]} 25... Bc4 {[%clk 0:02:26.6]} 26. Rfd1
{[%clk 0:02:08.7]} 26... Kf8 {[%clk 0:02:26.8]} 27. Nfxd5 {[%clk 0:01:56.4]}
27... Bxd5 {[%clk 0:02:23]} 28. Nxd5 {[%clk 0:01:57.3]} 28... Nxd5 {[%clk
0:02:21.1]} 29. Rxd5 {[%clk 0:01:58.2]} 1-0

[Event "Early-Titled-Tuesday-Blitz-May-07-2024"]
[Site "Chess.com"]
[Date "2024.05.07"]
[Round "3"]
[White "schackspelaren"]
[Black "Thjop"]
[Result "0-1"]
[WhiteElo "2372"]
[BlackElo "2583"]
[TimeControl "180+1"]
[EndTime "8:27:38 PDT"]
[Termination "Thjop won by resignation"]

1. d4 {[%clk 0:02:59.7]} 1... Nf6 {[%clk 0:02:59.8]} 2. c4 {[%clk 0:02:59.5]}
2... g6 {[%clk 0:03:00]} 3. Nc3 {[%clk 0:02:59.3]} 3... Bg7 {[%clk 0:03:00.3]}
4. e4 {[%clk 0:02:59.7]} 4... d6 {[%clk 0:03:00.8]} 5. f3 {[%clk 0:02:59]} 5...
O-O {[%clk 0:03:00.7]} 6. Be3 {[%clk 0:02:59.6]} 6... Nc6 {[%clk 0:03:01.2]} 7.
Qd2 {[%clk 0:02:59.9]} 7... a6 {[%clk 0:03:01.8]} 8. Nge2 {[%clk 0:02:59.9]}
8... Na5 {[%clk 0:03:00.8]} 9. b3 {[%clk 0:02:55.6]} 9... b5 {[%clk 0:02:58.7]}
10. cxb5 {[%clk 0:02:51.2]} 10... axb5 {[%clk 0:02:59.6]} 11. h4 {[%clk
0:02:43]} 11... Nxb3 {[%clk 0:02:56.5]} 12. axb3 {[%clk 0:02:30.3]} 12... Rxa1+
{[%clk 0:02:57.4]} 13. Kf2 {[%clk 0:02:29.5]} 13... c6 {[%clk 0:02:29.8]} 14. g4
{[%clk 0:02:28.5]} 14... e5 {[%clk 0:02:22.6]} 15. h5 {[%clk 0:02:25.9]} 15...
Bxg4 {[%clk 0:02:04.4]} 16. fxg4 {[%clk 0:02:20.8]} 16... Nxg4+ {[%clk
0:02:05.3]} 17. Kg3 {[%clk 0:02:19.4]} 17... Nxe3 {[%clk 0:02:00.2]} 18. Qxe3
{[%clk 0:02:19.4]} 18... exd4 {[%clk 0:01:56.7]} 19. Nxd4 {[%clk 0:02:17.5]}
19... Qf6 {[%clk 0:01:47]} 20. Nce2 {[%clk 0:02:13.8]} 20... Rxf1 {[%clk
0:01:44.5]} 0-1

[Event "Early-Titled-Tuesday-Blitz-May-07-2024"]
[Site "Chess.com"]
[Date "2024.05.07"]
[Round "3"]
[White "SilverSwords13"]
[Black "manitodeplomo"]
[Result "1-0"]
[WhiteElo "2483"]
[BlackElo "2619"]
[TimeControl "180+1"]
[EndTime "8:27:56 PDT"]
[Termination "SilverSwords13 won by resignation"]

1. e4 {[%clk 0:02:45.3]} 1... Nc6 {[%clk 0:02:58.6]} 2. Nf3 {[%clk 0:02:44.4]}
2... d5 {[%clk 0:02:58.6]} 3. exd5 {[%clk 0:02:44.7]} 3... Qxd5 {[%clk
0:02:59.4]} 4. Nc3 {[%clk 0:02:44.4]} 4... Qh5 {[%clk 0:02:59]} 5. Be2 {[%clk
0:02:34.2]} 5... Bg4 {[%clk 0:02:58.5]} 6. O-O {[%clk 0:02:34.9]} 6... Nf6
{[%clk 0:02:55.9]} 7. h3 {[%clk 0:02:32.4]} 7... O-O-O {[%clk 0:02:55.3]} 8.
hxg4 {[%clk 0:02:06.9]} 8... Nxg4 {[%clk 0:02:56.2]} 9. d3 {[%clk 0:02:07.5]}
9... Nd4 {[%clk 0:02:55.1]} 10. Bf4 {[%clk 0:02:07]} 10... f5 {[%clk 0:02:42.3]}
11. Nxd4 {[%clk 0:01:43]} 11... Rxd4 {[%clk 0:02:43.2]} 12. Bxg4 {[%clk
0:01:43.4]} 12... fxg4 {[%clk 0:02:42.1]} 13. Bg3 {[%clk 0:01:44.1]} 13... e5
{[%clk 0:02:20.1]} 14. Re1 {[%clk 0:01:41.7]} 14... Bd6 {[%clk 0:02:19.5]} 15.
Nb5 {[%clk 0:01:40.2]} 15... Rb4 {[%clk 0:02:18.2]} 16. Nxd6+ {[%clk 0:01:35.7]}
16... cxd6 {[%clk 0:02:19.1]} 17. Re4 {[%clk 0:01:34.2]} 17... Rxe4 {[%clk
0:02:03.5]} 18. dxe4 {[%clk 0:01:34.3]} 18... Rf8 {[%clk 0:02:03.4]} 19. Qxd6
{[%clk 0:01:33]} 1-0

[Event "Early-Titled-Tuesday-Blitz-May-07-2024"]
[Site "Chess.com"]
[Date "2024.05.07"]
[Round "3"]
[White "Mikasinski"]
[Black "secretsuperstar7"]
[Result "1-0"]
[WhiteElo "2651"]
[BlackElo "2478"]
[TimeControl "180+1"]
[EndTime "8:27:58 PDT"]
[Termination "Mikasinski won by resignation"]

1. e4 {[%clk 0:02:52.5]} 1... e5 {[%clk 0:03:00]} 2. Nf3 {[%clk 0:02:51]} 2...
Nc6 {[%clk 0:02:59.4]} 3. Nc3 {[%clk 0:02:49.4]} 3... Nf6 {[%clk 0:02:58.3]} 4.
Bb5 {[%clk 0:02:50.1]} 4... a6 {[%clk 0:02:55]} 5. Bxc6 {[%clk 0:02:50.1]} 5...
dxc6 {[%clk 0:02:54.9]} 6. Nxe5 {[%clk 0:02:48.3]} 6... Qe7 {[%clk 0:02:44.4]}
7. d4 {[%clk 0:02:44.8]} 7... c5 {[%clk 0:02:44.5]} 8. f4 {[%clk 0:02:33.9]}
8... cxd4 {[%clk 0:02:29.9]} 9. Qxd4 {[%clk 0:02:33.5]} 9... c5 {[%clk
0:02:26.6]} 10. Qa4+ {[%clk 0:02:32.4]} 10... b5 {[%clk 0:02:24.3]} 11. Nxb5
{[%clk 0:02:28]} 11... axb5 {[%clk 0:01:55.5]} 12. Qxa8 {[%clk 0:02:25.4]} 12...
Qc7 {[%clk 0:01:55.1]} 13. Bd2 {[%clk 0:02:11.3]} 13... Bd6 {[%clk 0:01:52.9]}
14. Ba5 {[%clk 0:02:09.3]} 14... Qb7 {[%clk 0:01:44.3]} 15. Qxb7 {[%clk
0:02:08.8]} 15... Bxb7 {[%clk 0:01:45.2]} 16. O-O-O {[%clk 0:02:09.3]} 16...
Bxe5 {[%clk 0:01:41.1]} 17. Rd8+ {[%clk 0:01:56.3]} 17... Ke7 {[%clk 0:01:40.9]}
18. fxe5 {[%clk 0:01:57]} 18... Rxd8 {[%clk 0:01:39.1]} 19. exf6+ {[%clk
0:01:57.1]} 1-0

[Event "Early-Titled-Tuesday-Blitz-May-07-2024"]
[Site "Chess.com"]
[Date "2024.05.07"]
[Round "3"]
[White "AnaKuchava"]
[Black "OppieZippy"]
[Result "1-0"]
[WhiteElo "2197"]
[BlackElo "2381"]
[TimeControl "180+1"]
[EndTime "8:28:23 PDT"]
[Termination "AnaKuchava won by resignation"]

1. d4 {[%clk 0:03:00.9]} 1... Nf6 {[%clk 0:02:58.4]} 2. Nf3 {[%clk 0:02:59.8]}
2... d5 {[%clk 0:02:54]} 3. c4 {[%clk 0:02:54.5]} 3... e6 {[%clk 0:02:54.1]} 4.
Nc3 {[%clk 0:02:53.6]} 4... c5 {[%clk 0:02:54.3]} 5. cxd5 {[%clk 0:02:53.3]}
5... exd5 {[%clk 0:02:55.2]} 6. Bg5 {[%clk 0:02:53.1]} 6... Nc6 {[%clk
0:02:51.2]} 7. e3 {[%clk 0:02:50.5]} 7... cxd4 {[%clk 0:02:51.5]} 8. Nxd4 {[%clk
0:02:48.4]} 8... Be7 {[%clk 0:02:51.3]} 9. Be2 {[%clk 0:02:46.3]} 9... O-O
{[%clk 0:02:50.9]} 10. O-O {[%clk 0:02:45.8]} 10... h6 {[%clk 0:02:50]} 11. Bh4
{[%clk 0:02:44.8]} 11... a6 {[%clk 0:02:44.7]} 12. Rc1 {[%clk 0:02:28.7]} 12...
Ne5 {[%clk 0:02:44.1]} 13. h3 {[%clk 0:01:38.6]} 13... Re8 {[%clk 0:02:40.9]}
14. Qc2 {[%clk 0:01:31.8]} 14... Nc6 {[%clk 0:02:31.5]} 15. Rfd1 {[%clk
0:01:26.5]} 15... Ne4 {[%clk 0:02:14.6]} 16. Bxe7 {[%clk 0:01:18.4]} 16... Rxe7
{[%clk 0:02:07.9]} 17. Nxe4 {[%clk 0:01:14.8]} 17... Rxe4 {[%clk 0:01:57.4]} 18.
Nxc6 {[%clk 0:01:14]} 1-0

[Event "Early-Titled-Tuesday-Blitz-May-07-2024"]
[Site "Chess.com"]
[Date "2024.05.07"]
[Round "3"]
[White "Honiex"]
[Black "ClauSanLuis"]
[Result "0-1"]
[WhiteElo "2566"]
[BlackElo "2401"]
[TimeControl "180+1"]
[EndTime "8:28:26 PDT"]
[Termination "ClauSanLuis won by resignation"]

1. Nc3 {[%clk 0:02:52.2]} 1... c5 {[%clk 0:03:00.9]} 2. Nf3 {[%clk 0:02:51.1]}
2... d6 {[%clk 0:03:00.6]} 3. d4 {[%clk 0:02:51.1]} 3... cxd4 {[%clk 0:03:00]}
4. Qxd4 {[%clk 0:02:52]} 4... Nc6 {[%clk 0:02:58.4]} 5. Qh4 {[%clk 0:02:51.3]}
5... e6 {[%clk 0:02:55.3]} 6. Bg5 {[%clk 0:02:49.8]} 6... Be7 {[%clk 0:02:54.9]}
7. Bxe7 {[%clk 0:02:48.6]} 7... Qxe7 {[%clk 0:02:55.1]} 8. Qg3 {[%clk
0:02:48.9]} 8... g6 {[%clk 0:02:50.3]} 9. O-O-O {[%clk 0:02:48.4]} 9... d5
{[%clk 0:02:23.9]} 10. e4 {[%clk 0:02:41.8]} 10... Nf6 {[%clk 0:02:13.5]} 11.
Bb5 {[%clk 0:02:07.4]} 11... O-O {[%clk 0:02:08.9]} 12. Bxc6 {[%clk 0:02:06.1]}
12... bxc6 {[%clk 0:02:08]} 13. Rhe1 {[%clk 0:01:36.1]} 13... Nh5 {[%clk
0:02:07.7]} 14. Qe5 {[%clk 0:01:17.1]} 14... f6 {[%clk 0:02:07.3]} 15. Qd4
{[%clk 0:01:15.2]} 15... e5 {[%clk 0:02:07.8]} 16. Qc5 {[%clk 0:01:00.3]} 16...
Qxc5 {[%clk 0:02:05.7]} 0-1

[Event "Early-Titled-Tuesday-Blitz-May-07-2024"]
[Site "Chess.com"]
[Date "2024.05.07"]
[Round "3"]
[White "Seochesspie"]
[Black "Lucky_Puncher"]
[Result "1-0"]
[WhiteElo "2849"]
[BlackElo "2534"]
[TimeControl "180+1"]
[EndTime "8:28:29 PDT"]
[Termination "Seochesspie won by resignation"]

1. c4 {[%clk 0:03:00.9]} 1... g6 {[%clk 0:02:59.5]} 2. d4 {[%clk 0:03:00.6]}
2... Bg7 {[%clk 0:03:00.2]} 3. Nc3 {[%clk 0:03:00.4]} 3... Nf6 {[%clk
0:03:00.8]} 4. e4 {[%clk 0:03:00.6]} 4... d6 {[%clk 0:03:01.5]} 5. h3 {[%clk
0:02:59.5]} 5... O-O {[%clk 0:03:02]} 6. Be3 {[%clk 0:02:59.6]} 6... e5 {[%clk
0:02:59.4]} 7. d5 {[%clk 0:02:59.3]} 7... Na6 {[%clk 0:02:58.8]} 8. g4 {[%clk
0:02:58.8]} 8... Nc5 {[%clk 0:02:59]} 9. Qc2 {[%clk 0:02:58]} 9... a5 {[%clk
0:02:57.9]} 10. Nge2 {[%clk 0:02:57.5]} 10... h5 {[%clk 0:02:50.4]} 11. g5
{[%clk 0:02:50.4]} 11... Ne8 {[%clk 0:02:33.8]} 12. Rg1 {[%clk 0:02:44.6]} 12...
c6 {[%clk 0:02:33.4]} 13. O-O-O {[%clk 0:02:44.1]} 13... cxd5 {[%clk 0:02:32.6]}
14. Nxd5 {[%clk 0:02:40.6]} 14... Kh8 {[%clk 0:02:24.4]} 15. Nec3 {[%clk
0:02:37.6]} 15... Ne6 {[%clk 0:02:23.3]} 16. Kb1 {[%clk 0:02:33.8]} 16... Nd4
{[%clk 0:02:23]} 17. Qd3 {[%clk 0:02:28.1]} 17... Be6 {[%clk 0:02:17.7]} 18. f4
{[%clk 0:02:26.1]} 18... Nf3 {[%clk 0:02:05.5]} 19. Bb6 {[%clk 0:02:16.9]} 19...
Nxg1 {[%clk 0:01:14]} 20. Bxd8 {[%clk 0:02:15.4]} 20... Rxd8 {[%clk 0:01:14.9]}
21. Bg2 {[%clk 0:02:02.5]} 1-0

[Event "Early-Titled-Tuesday-Blitz-May-07-2024"]
[Site "Chess.com"]
[Date "2024.05.07"]
[Round "3"]
[White "Yerlan-Ra"]
[Black "GlavkonVVS"]
[Result "0-1"]
[WhiteElo "2481"]
[BlackElo "2657"]
[TimeControl "180+1"]
[EndTime "8:28:31 PDT"]
[Termination "GlavkonVVS won by resignation"]

1. e4 {[%clk 0:03:00.8]} 1... c5 {[%clk 0:02:58.9]} 2. c3 {[%clk 0:03:00.5]}
2... Nf6 {[%clk 0:02:58.2]} 3. e5 {[%clk 0:03:00.8]} 3... Nd5 {[%clk 0:02:57.9]}
4. d4 {[%clk 0:03:01]} 4... cxd4 {[%clk 0:02:56.4]} 5. Qxd4 {[%clk 0:02:58.4]}
5... e6 {[%clk 0:02:50.5]} 6. Nf3 {[%clk 0:02:58.3]} 6... Nc6 {[%clk 0:02:49.9]}
7. Qe4 {[%clk 0:02:57.9]} 7... d6 {[%clk 0:02:50.3]} 8. Bc4 {[%clk 0:02:49.4]}
8... dxe5 {[%clk 0:02:41.3]} 9. Nxe5 {[%clk 0:02:48.7]} 9... Nxe5 {[%clk
0:02:39.1]} 10. Qxe5 {[%clk 0:02:49.6]} 10... Qf6 {[%clk 0:02:36.4]} 11. Qe2
{[%clk 0:02:45.7]} 11... Nb6 {[%clk 0:02:32.9]} 12. Bb5+ {[%clk 0:02:43.8]}
12... Bd7 {[%clk 0:02:33]} 13. Nd2 {[%clk 0:02:43.3]} 13... Be7 {[%clk
0:02:28.5]} 14. Ne4 {[%clk 0:02:41.1]} 14... Qf5 {[%clk 0:02:28.5]} 15. Bxd7+
{[%clk 0:02:40.1]} 15... Nxd7 {[%clk 0:02:28.5]} 16. Ng3 {[%clk 0:02:38.3]}
16... Qd5 {[%clk 0:02:15.1]} 17. O-O {[%clk 0:02:37.5]} 17... O-O {[%clk
0:02:13.7]} 18. Rd1 {[%clk 0:02:36]} 18... Qc6 {[%clk 0:02:13.9]} 19. Nf5 {[%clk
0:02:36.2]} 19... Bf6 {[%clk 0:01:57.8]} 20. Nd6 {[%clk 0:02:24.8]} 20... Rfd8
{[%clk 0:01:54.9]} 21. Bf4 {[%clk 0:02:20.7]} 21... Nc5 {[%clk 0:01:43.3]} 22.
Bg3 {[%clk 0:02:12.4]} 22... a5 {[%clk 0:01:34.4]} 23. Qb5 {[%clk 0:01:54]}
23... Rxd6 {[%clk 0:01:31.2]} 24. Qxc6 {[%clk 0:01:52.6]} 24... Rxc6 {[%clk
0:01:31]} 25. Rd7 {[%clk 0:01:51.2]} 25... Nxd7 {[%clk 0:01:30.4]} 0-1

[Event "Early-Titled-Tuesday-Blitz-May-07-2024"]
[Site "Chess.com"]
[Date "2024.05.07"]
[Round "3"]
[White "DanielDardha2005"]
[Black "Arhan_Anand"]
[Result "1-0"]
[WhiteElo "2882"]
[BlackElo "2621"]
[TimeControl "180+1"]
[EndTime "8:28:45 PDT"]
[Termination "DanielDardha2005 won by resignation"]

1. d4 {[%clk 0:03:00.9]} 1... Nf6 {[%clk 0:02:59.8]} 2. Bg5 {[%clk 0:02:58.4]}
2... d5 {[%clk 0:02:58.6]} 3. e3 {[%clk 0:02:58.2]} 3... h6 {[%clk 0:02:58]} 4.
Bxf6 {[%clk 0:02:58.3]} 4... exf6 {[%clk 0:02:58.9]} 5. c4 {[%clk 0:02:58.5]}
5... dxc4 {[%clk 0:02:55.2]} 6. Bxc4 {[%clk 0:02:59.4]} 6... Be7 {[%clk
0:02:54.6]} 7. Nc3 {[%clk 0:02:39.8]} 7... O-O {[%clk 0:02:54.2]} 8. Qh5 {[%clk
0:02:33.2]} 8... Nc6 {[%clk 0:02:38]} 9. Nge2 {[%clk 0:02:27.9]} 9... f5 {[%clk
0:02:33.2]} 10. Nf4 {[%clk 0:02:23]} 10... Kh7 {[%clk 0:02:32.3]} 11. Bxf7
{[%clk 0:02:21]} 11... Bg5 {[%clk 0:02:25.7]} 12. Qg6+ {[%clk 0:02:06.3]} 12...
Kh8 {[%clk 0:02:25.8]} 13. Nh5 {[%clk 0:02:07]} 13... Rxf7 {[%clk 0:02:23.6]}
14. Qxf7 {[%clk 0:02:07.5]} 14... Qe7 {[%clk 0:02:22.7]} 15. Qxe7 {[%clk
0:02:06.9]} 15... Nxe7 {[%clk 0:02:23.6]} 16. h4 {[%clk 0:02:06.8]} 16... Bf6
{[%clk 0:02:23.1]} 17. Nxf6 {[%clk 0:02:06.5]} 17... gxf6 {[%clk 0:02:24]} 18.
f3 {[%clk 0:02:04.5]} 18... Be6 {[%clk 0:02:23.6]} 19. Kf2 {[%clk 0:02:03.9]}
19... Rg8 {[%clk 0:02:22.8]} 20. Ne2 {[%clk 0:01:59.8]} 20... c6 {[%clk
0:02:22.5]} 21. Nf4 {[%clk 0:01:59.9]} 21... Bf7 {[%clk 0:02:22.4]} 22. h5
{[%clk 0:02:00.4]} 22... Rd8 {[%clk 0:02:21.4]} 23. Rac1 {[%clk 0:02:00.1]}
23... Kh7 {[%clk 0:02:18.3]} 24. a3 {[%clk 0:01:59.8]} 24... a6 {[%clk
0:02:17.9]} 25. Rc3 {[%clk 0:01:59.5]} 25... Rd7 {[%clk 0:02:17]} 26. b4 {[%clk
0:01:58.2]} 26... Kg7 {[%clk 0:02:14.8]} 27. Rb1 {[%clk 0:01:57.8]} 27... b5
{[%clk 0:02:10.8]} 28. Rbc1 {[%clk 0:01:57.5]} 28... Rd6 {[%clk 0:02:09.9]} 29.
Rc5 {[%clk 0:01:57.2]} 29... Kh7 {[%clk 0:02:09.3]} 30. Rd1 {[%clk 0:01:56.2]}
30... Kg7 {[%clk 0:02:09]} 31. e4 {[%clk 0:01:56.2]} 31... fxe4 {[%clk 0:02:09]}
32. fxe4 {[%clk 0:01:57.1]} 32... Rd7 {[%clk 0:02:06.8]} 33. g4 {[%clk
0:01:56.5]} 33... Kh7 {[%clk 0:02:06.1]} 34. Ke3 {[%clk 0:01:56.7]} 34... Kg7
{[%clk 0:02:02.7]} 35. Rdc1 {[%clk 0:01:57]} 35... Bc4 {[%clk 0:01:58.6]} 36.
R1xc4 {[%clk 0:01:49]} 36... bxc4 {[%clk 0:01:59.5]} 37. Rxc4 {[%clk 0:01:49.9]}
37... Rd6 {[%clk 0:01:59]} 38. Rc5 {[%clk 0:01:49.3]} 38... Kf7 {[%clk
0:01:58.3]} 39. Ra5 {[%clk 0:01:49]} 1-0

[Event "Early-Titled-Tuesday-Blitz-May-07-2024"]
[Site "Chess.com"]
[Date "2024.05.07"]
[Round "3"]
[White "Byniolus"]
[Black "jlf287"]
[Result "1-0"]
[WhiteElo "2808"]
[BlackElo "2523"]
[TimeControl "180+1"]
[EndTime "8:29:01 PDT"]
[Termination "Byniolus won by resignation"]

1. d4 {[%clk 0:03:00.9]} 1... d5 {[%clk 0:02:55.2]} 2. Nf3 {[%clk 0:03:00.1]}
2... Nf6 {[%clk 0:02:55.2]} 3. Bf4 {[%clk 0:02:59.8]} 3... c5 {[%clk 0:02:55.2]}
4. c3 {[%clk 0:03:00.1]} 4... Nc6 {[%clk 0:02:55.8]} 5. Nbd2 {[%clk 0:03:00.5]}
5... cxd4 {[%clk 0:02:55]} 6. cxd4 {[%clk 0:03:01.4]} 6... Bf5 {[%clk 0:02:55]}
7. e3 {[%clk 0:03:01.5]} 7... e6 {[%clk 0:02:55.6]} 8. Qb3 {[%clk 0:03:01.9]}
8... a6 {[%clk 0:02:48.4]} 9. Qxb7 {[%clk 0:02:44.6]} 9... Na5 {[%clk
0:02:48.6]} 10. Qc7 {[%clk 0:02:44.1]} 10... Qxc7 {[%clk 0:02:48.3]} 11. Bxc7
{[%clk 0:02:45]} 11... Nc6 {[%clk 0:02:44.5]} 12. a3 {[%clk 0:02:29.6]} 12...
Rc8 {[%clk 0:02:43.2]} 13. Bg3 {[%clk 0:02:28.3]} 13... Na7 {[%clk 0:02:06]} 14.
Bxa6 {[%clk 0:02:23.8]} 14... Rc2 {[%clk 0:02:06.1]} 15. b4 {[%clk 0:02:17.3]}
15... Be7 {[%clk 0:02:00.3]} 16. O-O {[%clk 0:02:15.8]} 16... O-O {[%clk
0:02:00.3]} 17. Rfc1 {[%clk 0:02:15.4]} 17... Rxc1+ {[%clk 0:01:48.6]} 18. Rxc1
{[%clk 0:02:14.6]} 18... Ra8 {[%clk 0:01:48]} 19. Nb3 {[%clk 0:01:43.4]} 19...
Ne4 {[%clk 0:01:44.7]} 20. Bb7 {[%clk 0:01:27.4]} 20... Re8 {[%clk 0:01:40.4]}
21. Nc5 {[%clk 0:01:19.2]} 21... Nb5 {[%clk 0:01:26.4]} 22. Bc6 {[%clk 0:01:16]}
1-0

[Event "Early-Titled-Tuesday-Blitz-May-07-2024"]
[Site "Chess.com"]
[Date "2024.05.07"]
[Round "3"]
[White "OparinGrigoriy"]
[Black "mjray79"]
[Result "1-0"]
[WhiteElo "2985"]
[BlackElo "2732"]
[TimeControl "180+1"]
[EndTime "8:29:02 PDT"]
[Termination "OparinGrigoriy won by resignation"]

1. g3 {[%clk 0:03:00.9]} 1... e5 {[%clk 0:02:56.5]} 2. c4 {[%clk 0:03:00.7]}
2... Nf6 {[%clk 0:02:50.6]} 3. Bg2 {[%clk 0:03:00.7]} 3... g6 {[%clk 0:02:50]}
4. Nc3 {[%clk 0:03:00.8]} 4... Bg7 {[%clk 0:02:49.8]} 5. Nf3 {[%clk 0:03:01.5]}
5... Nc6 {[%clk 0:02:45.1]} 6. O-O {[%clk 0:02:59.6]} 6... O-O {[%clk
0:02:44.8]} 7. d3 {[%clk 0:03:00.1]} 7... d5 {[%clk 0:02:43.3]} 8. cxd5 {[%clk
0:02:47.2]} 8... Nxd5 {[%clk 0:02:44.2]} 9. Bg5 {[%clk 0:02:47.6]} 9... Nde7
{[%clk 0:02:40.2]} 10. a3 {[%clk 0:02:44.7]} 10... Be6 {[%clk 0:02:37.3]} 11.
Rc1 {[%clk 0:02:44.1]} 11... h6 {[%clk 0:02:31.2]} 12. Bd2 {[%clk 0:02:43.2]}
12... f5 {[%clk 0:02:31.4]} 13. b4 {[%clk 0:02:37.2]} 13... Nd5 {[%clk
0:02:23.5]} 14. b5 {[%clk 0:02:33.6]} 14... Nd4 {[%clk 0:02:15.3]} 15. Nxd4
{[%clk 0:02:31.7]} 15... exd4 {[%clk 0:02:15.5]} 16. Nxd5 {[%clk 0:02:32.2]}
16... Bxd5 {[%clk 0:02:16.1]} 17. Bxd5+ {[%clk 0:02:32.9]} 17... Qxd5 {[%clk
0:02:16.7]} 18. Rxc7 {[%clk 0:02:33.6]} 18... Qxb5 {[%clk 0:02:17.1]} 19. Qc2
{[%clk 0:02:29.8]} 19... b6 {[%clk 0:02:10.5]} 20. Qa2+ {[%clk 0:02:16.7]} 20...
Kh8 {[%clk 0:02:08.3]} 21. Rfc1 {[%clk 0:01:59.8]} 21... Rae8 {[%clk 0:01:57.3]}
22. Rxg7 {[%clk 0:01:58]} 22... Kxg7 {[%clk 0:01:54.7]} 23. Rc7+ {[%clk
0:01:58.7]} 23... Kh8 {[%clk 0:01:31.8]} 24. Bxh6 {[%clk 0:01:59.2]} 24... Rc8
{[%clk 0:01:29.5]} 25. Rxa7 {[%clk 0:01:50.5]} 25... Ra8 {[%clk 0:01:25.7]} 26.
Re7 {[%clk 0:01:40.8]} 26... Rae8 {[%clk 0:01:19.3]} 27. Bxf8 {[%clk 0:01:39.9]}
27... Rxf8 {[%clk 0:01:16.4]} 28. Qe6 {[%clk 0:01:38.6]} 1-0

[Event "Early-Titled-Tuesday-Blitz-May-07-2024"]
[Site "Chess.com"]
[Date "2024.05.07"]
[Round "3"]
[White "IriBu"]
[Black "Aleksandar-Topalov"]
[Result "1-0"]
[WhiteElo "2590"]
[BlackElo "2400"]
[TimeControl "180+1"]
[EndTime "8:29:29 PDT"]
[Termination "IriBu won by resignation"]

1. d4 {[%clk 0:03:00.9]} 1... Nf6 {[%clk 0:02:59.1]} 2. Nf3 {[%clk 0:03:00.9]}
2... g6 {[%clk 0:02:58.1]} 3. e3 {[%clk 0:02:58.5]} 3... Bg7 {[%clk 0:02:57.8]}
4. Be2 {[%clk 0:02:58.9]} 4... O-O {[%clk 0:02:57.8]} 5. O-O {[%clk 0:02:59.2]}
5... d6 {[%clk 0:02:56.7]} 6. Nbd2 {[%clk 0:02:57.4]} 6... c5 {[%clk 0:02:54.5]}
7. c3 {[%clk 0:02:57]} 7... Nc6 {[%clk 0:02:49.9]} 8. e4 {[%clk 0:02:57.3]} 8...
cxd4 {[%clk 0:02:47.9]} 9. cxd4 {[%clk 0:02:57.3]} 9... Bg4 {[%clk 0:02:31.8]}
10. d5 {[%clk 0:02:57.4]} 10... Nb4 {[%clk 0:02:05.2]} 11. Qb3 {[%clk
0:02:54.4]} 11... Bxf3 {[%clk 0:01:39.8]} 12. Bxf3 {[%clk 0:02:53.5]} 12... Qa5
{[%clk 0:01:11.1]} 13. Nc4 {[%clk 0:02:52.4]} 13... Qb5 {[%clk 0:01:00.4]} 14.
a3 {[%clk 0:02:51.9]} 14... Rfc8 {[%clk 0:00:55]} 15. Be2 {[%clk 0:02:51.5]}
15... Nxe4 {[%clk 0:00:40.2]} 16. Qxb4 {[%clk 0:02:50.8]} 16... Qxd5 {[%clk
0:00:39.9]} 17. Be3 {[%clk 0:02:40.4]} 17... b5 {[%clk 0:00:32.3]} 18. Na5
{[%clk 0:02:34.8]} 18... a6 {[%clk 0:00:16.1]} 19. Bf3 {[%clk 0:02:32]} 19... f5
{[%clk 0:00:16.2]} 20. Rfd1 {[%clk 0:02:30.6]} 20... Qe6 {[%clk 0:00:15.6]} 21.
Bxe4 {[%clk 0:02:27.8]} 21... fxe4 {[%clk 0:00:15.2]} 22. Bd4 {[%clk 0:02:27.5]}
22... Rc2 {[%clk 0:00:12.8]} 23. Bxg7 {[%clk 0:02:25.2]} 23... Kxg7 {[%clk
0:00:13.1]} 24. Qd4+ {[%clk 0:02:25.4]} 24... Kf7 {[%clk 0:00:11.5]} 25. Re1
{[%clk 0:02:25.6]} 25... d5 {[%clk 0:00:09.7]} 26. Rad1 {[%clk 0:02:20.6]} 26...
Rd8 {[%clk 0:00:08.6]} 27. Nb7 {[%clk 0:02:17.5]} 27... Rd7 {[%clk 0:00:06.8]}
28. Nc5 {[%clk 0:02:17.5]} 1-0